[Event "December 12 Late 2023"]
[Site "https://www.chess.com"]
[Date "2023.12.12"]
[Round "3"]
[White "yaguigor"]
[Black "Jaracz, Pawel"]
[Result "0-1"]
[Board "66"]
[TimeControl "180+1"]
[BlackFideId "1102222"]
[WhiteElo "2472"]
[BlackElo "2637"]
[BlackTeam "POL"]
[WhiteClock "0:00:08"]
[BlackClock "0:00:10"]

1. e4 {[%clk 0:03:00]}  c5 {[%clk 0:02:55]} 2. Nf3 {[%clk 0:03:00]}  d6 {[%clk 0:02:55]} 3. d4 {[%clk 0:03:00]}  cxd4 {[%clk 0:02:55]} 4. Nxd4 {[%clk 0:03:01]}  Nf6 {[%clk 0:02:55]} 5. Nc3 {[%clk 0:03:01]}  a6 {[%clk 0:02:55]} 6. f3 {[%clk 0:03:02]}  e5 {[%clk 0:02:54]} 7. Nb3 {[%clk 0:03:02]}  Be6 {[%clk 0:02:54]} 8. Be3 {[%clk 0:03:02]}  h5 {[%clk 0:02:54]} 9. Qd2 {[%clk 0:03:01]}  Nbd7 {[%clk 0:02:54]} 10. Nd5 {[%clk 0:03:00]}  Bxd5 {[%clk 0:02:53]} 11. exd5 {[%clk 0:03:01]}  Qc7 {[%clk 0:02:52]} 12. Be2 {[%clk 0:02:58]}  g6 {[%clk 0:02:51]} 13. Na5 {[%clk 0:02:46]}  Bg7 {[%clk 0:02:20]} 14. O-O {[%clk 0:02:43]}  O-O {[%clk 0:02:18]} 15. c4 {[%clk 0:02:40]}  h4 {[%clk 0:02:17]} 16. Rac1 {[%clk 0:02:31]}  Nh5 {[%clk 0:02:16]} 17. b4 {[%clk 0:02:29]}  b6 {[%clk 0:02:06]} 18. Nc6 {[%clk 0:02:25]}  Rae8 {[%clk 0:02:06]} 19. c5 {[%clk 0:01:59]}  bxc5 {[%clk 0:02:05]} 20. bxc5 {[%clk 0:01:54]}  Nxc5 {[%clk 0:02:05]} 21. Bxc5 {[%clk 0:01:52]}  dxc5 {[%clk 0:02:05]} 22. Bxa6 {[%clk 0:01:52]}  Nf4 {[%clk 0:01:56]} 23. Bb5 {[%clk 0:01:48]}  Qb6 {[%clk 0:01:54]} 24. a4 {[%clk 0:01:46]}  Bh6 {[%clk 0:01:38]} 25. Kh1 {[%clk 0:01:45]}  Kh7 {[%clk 0:01:33]} 26. g3 {[%clk 0:01:40]}  Nh5 {[%clk 0:01:26]} 27. Qf2 {[%clk 0:01:35]}  hxg3 {[%clk 0:01:25]} 28. hxg3 {[%clk 0:01:34]}  Bxc1 {[%clk 0:01:24]} 29. Rxc1 {[%clk 0:01:35]}  e4 {[%clk 0:01:21]} 30. fxe4 {[%clk 0:01:23]}  Rxe4 {[%clk 0:01:19]} 31. Qxc5 {[%clk 0:01:23]}  Qxc5 {[%clk 0:01:13]} 32. Rxc5 {[%clk 0:01:22]}  Nxg3+ {[%clk 0:01:11]} 33. Kg2 {[%clk 0:01:22]}  Nf5 {[%clk 0:01:10]} 34. a5 {[%clk 0:01:18]}  Rfe8 {[%clk 0:01:03]} 35. a6 {[%clk 0:01:16]}  Rg4+ {[%clk 0:00:58]} 36. Kf3 {[%clk 0:01:14]}  Ree4 {[%clk 0:00:44]} 37. a7 {[%clk 0:01:07]}  Ref4+ {[%clk 0:00:33]} 38. Ke2 {[%clk 0:01:05]}  Rg2+ {[%clk 0:00:33]} 39. Kd3 {[%clk 0:00:58]}  Rg3+ {[%clk 0:00:32]} 40. Ke2 {[%clk 0:00:57]}  Ra3 {[%clk 0:00:31]} 41. Rc4 {[%clk 0:00:52]}  Rxc4 {[%clk 0:00:24]} 42. Bxc4 {[%clk 0:00:51]}  Nd6 {[%clk 0:00:25]} 43. Bd3 {[%clk 0:00:48]}  Nc8 {[%clk 0:00:24]} 44. Ke3 {[%clk 0:00:46]}  Nxa7 {[%clk 0:00:24]} 45. Nxa7 {[%clk 0:00:42]}  Rxa7 {[%clk 0:00:24]} 46. Kd4 {[%clk 0:00:43]}  Kg7 {[%clk 0:00:22]} 47. Ke5 {[%clk 0:00:42]}  Ra3 {[%clk 0:00:19]} 48. Bb5 {[%clk 0:00:41]}  Rb3 {[%clk 0:00:18]} 49. Bc6 {[%clk 0:00:40]}  Kf8 {[%clk 0:00:18]} 50. d6 {[%clk 0:00:39]}  Rd3 {[%clk 0:00:17]} 51. Bb5 {[%clk 0:00:34]}  Rb3 {[%clk 0:00:16]} 52. Bc6 {[%clk 0:00:32]}  Rc3 {[%clk 0:00:16]} 53. Ba4 {[%clk 0:00:25]}  Rc5+ {[%clk 0:00:16]} 54. Kd4 {[%clk 0:00:25]}  Ra5 {[%clk 0:00:17]} 55. Bc6 {[%clk 0:00:24]}  f6 {[%clk 0:00:15]} 56. Kc4 {[%clk 0:00:17]}  Kf7 {[%clk 0:00:13]} 57. Kb4 {[%clk 0:00:16]}  Ra1 {[%clk 0:00:10]} 58. Bd5+ {[%clk 0:00:15]}  Ke8 {[%clk 0:00:10]} 59. Bc6+ {[%clk 0:00:15]}  Kd8 {[%clk 0:00:10]} 60. Kb5 {[%clk 0:00:14]}  Rc1 {[%clk 0:00:10]} 61. Be4 {[%clk 0:00:12]}  f5 {[%clk 0:00:10]} 62. Bd3 {[%clk 0:00:12]}  Kd7 {[%clk 0:00:10]} 63. Bc4 {[%clk 0:00:11]}  Kxd6 {[%clk 0:00:10]} 64. Bf7 {[%clk 0:00:11]}  g5 {[%clk 0:00:10]} 65. Bg6 {[%clk 0:00:08]}  Ke5 {[%clk 0:00:10]} 0-1

[Event "December 12 Late 2023"]
[Site "https://www.chess.com"]
[Date "2023.12.12"]
[Round "3"]
[White "Nadeev, Sergey"]
[Black "Dobrikov, Marco"]
[Result "0-1"]
[Board "68"]
[TimeControl "180+1"]
[WhiteFideId "4180038"]
[BlackFideId "12950378"]
[WhiteElo "2470"]
[BlackElo "2631"]
[WhiteTeam "RUS"]
[BlackTeam "GER"]
[WhiteClock "0:00:14"]
[BlackClock "0:01:30"]

1. e4 {[%clk 0:03:00]}  d5 {[%clk 0:02:54]} 2. exd5 {[%clk 0:03:00]}  Qxd5 {[%clk 0:02:54]} 3. Nc3 {[%clk 0:03:00]}  Qa5 {[%clk 0:02:54]} 4. d4 {[%clk 0:03:01]}  c6 {[%clk 0:02:54]} 5. Nf3 {[%clk 0:03:01]}  Bg4 {[%clk 0:02:55]} 6. h3 {[%clk 0:03:01]}  Bh5 {[%clk 0:02:53]} 7. g4 {[%clk 0:03:01]}  Bg6 {[%clk 0:02:53]} 8. Bg2 {[%clk 0:03:02]}  e6 {[%clk 0:02:54]} 9. Ne5 {[%clk 0:03:00]}  Nf6 {[%clk 0:02:54]} 10. O-O {[%clk 0:02:58]}  Nbd7 {[%clk 0:02:54]} 11. f4 {[%clk 0:02:58]}  h5 {[%clk 0:02:51]} 12. Nxg6 {[%clk 0:02:54]}  fxg6 {[%clk 0:02:51]} 13. g5 {[%clk 0:02:55]}  Nd5 {[%clk 0:02:50]} 14. Bd2 {[%clk 0:02:48]}  Qb6 {[%clk 0:02:41]} 15. Nxd5 {[%clk 0:02:46]}  exd5 {[%clk 0:02:39]} 16. Re1+ {[%clk 0:02:35]}  Kd8 {[%clk 0:02:37]} 17. c3 {[%clk 0:02:31]}  Kc7 {[%clk 0:02:35]} 18. f5 {[%clk 0:02:31]}  Bd6 {[%clk 0:02:30]} 19. fxg6 {[%clk 0:02:24]}  Rae8 {[%clk 0:02:23]} 20. b4 {[%clk 0:02:20]}  Kc8 {[%clk 0:02:18]} 21. Qf3 {[%clk 0:02:14]}  Ref8 {[%clk 0:02:07]} 22. Qd3 {[%clk 0:02:08]}  Qc7 {[%clk 0:02:04]} 23. b5 {[%clk 0:02:01]}  Nb6 {[%clk 0:02:04]} 24. bxc6 {[%clk 0:02:01]}  bxc6 {[%clk 0:02:05]} 25. Qa6+ {[%clk 0:01:45]}  Kd8 {[%clk 0:01:48]} 26. Rab1 {[%clk 0:01:33]}  Bh2+ {[%clk 0:01:48]} 27. Kh1 {[%clk 0:01:32]}  Rf2 {[%clk 0:01:49]} 28. Re2 {[%clk 0:01:19]}  Rhf8 {[%clk 0:01:43]} 29. Rbe1 {[%clk 0:00:14]}  Qg3 {[%clk 0:01:30]} 0-1

[Event "December 12 Late 2023"]
[Site "https://www.chess.com"]
[Date "2023.12.12"]
[Round "3"]
[White "Stankovic, Boris"]
[Black "Baches Garcia, Guillermo"]
[Result "0-1"]
[Board "69"]
[TimeControl "180+1"]
[WhiteFideId "985317"]
[BlackFideId "2209764"]
[WhiteElo "2628"]
[BlackElo "2469"]
[WhiteTeam "SRB"]
[BlackTeam "ESP"]
[WhiteClock "0:00:00"]
[BlackClock "0:00:14"]

1. e4 {[%clk 0:03:00]}  d5 {[%clk 0:02:59]} 2. Nc3 {[%clk 0:02:57]}  dxe4 {[%clk 0:02:59]} 3. Nxe4 {[%clk 0:02:58]}  Qd5 {[%clk 0:02:59]} 4. Nc3 {[%clk 0:02:55]}  Qa5 {[%clk 0:02:59]} 5. b4 {[%clk 0:02:46]}  Qxb4 {[%clk 0:02:59]} 6. Rb1 {[%clk 0:02:46]}  Qd6 {[%clk 0:02:58]} 7. d4 {[%clk 0:02:44]}  c6 {[%clk 0:02:54]} 8. Bc4 {[%clk 0:02:41]}  Nf6 {[%clk 0:02:53]} 9. Nge2 {[%clk 0:02:36]}  g6 {[%clk 0:02:52]} 10. Bf4 {[%clk 0:02:35]}  Qd8 {[%clk 0:02:52]} 11. O-O {[%clk 0:02:31]}  Bg7 {[%clk 0:02:52]} 12. a4 {[%clk 0:02:31]}  O-O {[%clk 0:02:51]} 13. Qd2 {[%clk 0:02:24]}  Nbd7 {[%clk 0:02:48]} 14. Rfd1 {[%clk 0:02:18]}  Nb6 {[%clk 0:02:46]} 15. Ba2 {[%clk 0:02:17]}  Nbd5 {[%clk 0:02:42]} 16. Bg3 {[%clk 0:02:16]}  b6 {[%clk 0:02:32]} 17. Nxd5 {[%clk 0:02:10]}  cxd5 {[%clk 0:02:27]} 18. Nc3 {[%clk 0:02:09]}  e6 {[%clk 0:02:18]} 19. Nb5 {[%clk 0:02:05]}  Ne4 {[%clk 0:02:16]} 20. Qe3 {[%clk 0:02:00]}  Nxg3 {[%clk 0:02:15]} 21. Qxg3 {[%clk 0:01:57]}  a6 {[%clk 0:02:09]} 22. Nd6 {[%clk 0:01:42]}  Bd7 {[%clk 0:01:54]} 23. a5 {[%clk 0:01:34]}  b5 {[%clk 0:01:43]} 24. Nb7 {[%clk 0:01:34]}  Qb8 {[%clk 0:01:35]} 25. Nc5 {[%clk 0:01:33]}  Bc6 {[%clk 0:01:30]} 26. c3 {[%clk 0:01:32]}  Qxg3 {[%clk 0:01:25]} 27. hxg3 {[%clk 0:01:32]}  Rfc8 {[%clk 0:01:23]} 28. f4 {[%clk 0:01:31]}  Bf8 {[%clk 0:01:23]} 29. Nd3 {[%clk 0:01:28]}  Ra7 {[%clk 0:01:20]} 30. Rb3 {[%clk 0:01:21]}  Rac7 {[%clk 0:01:19]} 31. Rc1 {[%clk 0:01:14]}  f6 {[%clk 0:01:18]} 32. Kf2 {[%clk 0:01:13]}  h5 {[%clk 0:01:17]} 33. Ke3 {[%clk 0:01:11]}  Kf7 {[%clk 0:01:17]} 34. Bb1 {[%clk 0:01:10]}  Bd7 {[%clk 0:01:14]} 35. Kd2 {[%clk 0:01:05]}  Be7 {[%clk 0:01:14]} 36. Nf2 {[%clk 0:00:59]}  b4 {[%clk 0:01:04]} 37. Nd3 {[%clk 0:00:38]}  Ba4 {[%clk 0:00:56]} 38. Rxb4 {[%clk 0:00:33]}  Bxb4 {[%clk 0:00:54]} 39. Nxb4 {[%clk 0:00:34]}  Bb5 {[%clk 0:00:52]} 40. Bd3 {[%clk 0:00:34]}  Bxd3 {[%clk 0:00:49]} 41. Kxd3 {[%clk 0:00:34]}  Ke7 {[%clk 0:00:43]} 42. Rc2 {[%clk 0:00:19]}  Kd6 {[%clk 0:00:41]} 43. Rc1 {[%clk 0:00:19]}  Ra7 {[%clk 0:00:37]} 44. Kd2 {[%clk 0:00:19]}  Rb8 {[%clk 0:00:35]} 45. Rh1 {[%clk 0:00:16]}  Rb5 {[%clk 0:00:33]} 46. g4 {[%clk 0:00:16]}  hxg4 {[%clk 0:00:32]} 47. Rh6 {[%clk 0:00:17]}  Rg7 {[%clk 0:00:27]} 48. Rh8 {[%clk 0:00:11]}  Rxa5 {[%clk 0:00:26]} 49. Rd8+ {[%clk 0:00:11]}  Rd7 {[%clk 0:00:26]} 50. Rg8 {[%clk 0:00:11]}  Ra1 {[%clk 0:00:23]} 51. Rxg6 {[%clk 0:00:10]}  f5 {[%clk 0:00:23]} 52. Nd3 {[%clk 0:00:10]}  Rb7 {[%clk 0:00:20]} 53. Nc5 {[%clk 0:00:08]}  Rb2+ {[%clk 0:00:21]} 54. Kd3 {[%clk 0:00:07]}  Rd1+ {[%clk 0:00:20]} 55. Ke3 {[%clk 0:00:08]}  Re1+ {[%clk 0:00:19]} 56. Kd3 {[%clk 0:00:08]}  Rxg2 {[%clk 0:00:19]} 57. Rg7 {[%clk 0:00:07]}  Rd1+ {[%clk 0:00:18]} 58. Ke3 {[%clk 0:00:06]}  Re1+ {[%clk 0:00:17]} 59. Kd3 {[%clk 0:00:07]}  g3 {[%clk 0:00:16]} 60. Rd7+ {[%clk 0:00:06]}  Kc6 {[%clk 0:00:16]} 61. Ra7 {[%clk 0:00:06]}  Rf2 {[%clk 0:00:15]} 62. Rxa6+ {[%clk 0:00:06]}  Kc7 {[%clk 0:00:14]} 63. Nxe6+ {[%clk 0:00:06]}  Kb8 {[%clk 0:00:14]} 64. Rb6+ {[%clk 0:00:04]}  Ka7 {[%clk 0:00:15]} 65. Rd6 {[%clk 0:00:03]}  g2 {[%clk 0:00:14]} 66. Nc5 {[%clk 0:00:03]}  g1=Q {[%clk 0:00:14]} 67. Rd7+ {[%clk 0:00:04]}  Kb8 {[%clk 0:00:14]} 68. Na6+ {[%clk 0:00:00]}  Kc8 {[%clk 0:00:14]} 0-1

[Event "December 12 Late 2023"]
[Site "https://www.chess.com"]
[Date "2023.12.12"]
[Round "3"]
[White "Serra Canals, Oriol"]
[Black "Vlassov, Nikolai"]
[Result "0-1"]
[Board "70"]
[TimeControl "180+1"]
[WhiteFideId "22276084"]
[BlackFideId "4103360"]
[WhiteElo "2466"]
[BlackElo "2624"]
[WhiteTeam "ESP"]
[BlackTeam "FID"]
[WhiteClock "0:00:00"]
[BlackClock "0:00:28"]

1. d4 {[%clk 0:03:00]}  Nf6 {[%clk 0:02:53]} 2. c4 {[%clk 0:03:00]}  Nc6 {[%clk 0:02:52]} 3. Nf3 {[%clk 0:02:57]}  e6 {[%clk 0:02:51]} 4. g3 {[%clk 0:02:52]}  Bb4+ {[%clk 0:02:51]} 5. Bd2 {[%clk 0:02:47]}  a5 {[%clk 0:02:49]} 6. Bg2 {[%clk 0:02:46]}  d6 {[%clk 0:02:49]} 7. O-O {[%clk 0:02:46]}  e5 {[%clk 0:02:48]} 8. dxe5 {[%clk 0:02:34]}  dxe5 {[%clk 0:02:47]} 9. Nc3 {[%clk 0:02:35]}  O-O {[%clk 0:02:44]} 10. a3 {[%clk 0:02:23]}  Bc5 {[%clk 0:02:39]} 11. Qc2 {[%clk 0:02:20]}  h6 {[%clk 0:02:37]} 12. Rad1 {[%clk 0:02:14]}  Qe7 {[%clk 0:02:36]} 13. Nd5 {[%clk 0:02:03]}  Nxd5 {[%clk 0:02:34]} 14. cxd5 {[%clk 0:02:04]}  Nd4 {[%clk 0:02:33]} 15. Nxd4 {[%clk 0:02:02]}  Bxd4 {[%clk 0:02:34]} 16. e3 {[%clk 0:01:59]}  Bb6 {[%clk 0:02:31]} 17. b4 {[%clk 0:01:49]}  Bg4 {[%clk 0:02:11]} 18. Rc1 {[%clk 0:01:44]}  Rfc8 {[%clk 0:01:58]} 19. h3 {[%clk 0:01:38]}  Be2 {[%clk 0:01:49]} 20. Rfe1 {[%clk 0:01:35]}  Bb5 {[%clk 0:01:48]} 21. a4 {[%clk 0:01:25]}  Be8 {[%clk 0:01:47]} 22. b5 {[%clk 0:01:23]}  Rd8 {[%clk 0:01:44]} 23. e4 {[%clk 0:01:20]}  Rd6 {[%clk 0:01:41]} 24. Be3 {[%clk 0:01:20]}  Bxe3 {[%clk 0:01:30]} 25. Rxe3 {[%clk 0:01:21]}  c6 {[%clk 0:01:30]} 26. dxc6 {[%clk 0:01:03]}  bxc6 {[%clk 0:01:30]} 27. Qc5 {[%clk 0:01:04]}  cxb5 {[%clk 0:01:26]} 28. axb5 {[%clk 0:00:30]}  a4 {[%clk 0:01:26]} 29. b6 {[%clk 0:00:28]}  Rd1+ {[%clk 0:01:03]} 30. Kh2 {[%clk 0:00:27]}  Qxc5 {[%clk 0:01:03]} 31. Rxc5 {[%clk 0:00:26]}  Rb1 {[%clk 0:01:03]} 32. Rxe5 {[%clk 0:00:22]}  Rxb6 {[%clk 0:00:56]} 33. Ra3 {[%clk 0:00:20]}  Rb3 {[%clk 0:00:53]} 34. Rxe8+ {[%clk 0:00:20]}  Rxe8 {[%clk 0:00:52]} 35. Rxa4 {[%clk 0:00:21]}  Rb2 {[%clk 0:00:52]} 36. Kg1 {[%clk 0:00:18]}  g5 {[%clk 0:00:52]} 37. Bf3 {[%clk 0:00:18]}  Rd8 {[%clk 0:00:50]} 38. Ra1 {[%clk 0:00:16]}  Rdd2 {[%clk 0:00:50]} 39. Rf1 {[%clk 0:00:17]}  Kg7 {[%clk 0:00:50]} 40. Bh5 {[%clk 0:00:15]}  Kf6 {[%clk 0:00:49]} 41. Bf3 {[%clk 0:00:14]}  Ke5 {[%clk 0:00:48]} 42. Kg2 {[%clk 0:00:15]}  h5 {[%clk 0:00:46]} 43. g4 {[%clk 0:00:13]}  hxg4 {[%clk 0:00:40]} 44. hxg4 {[%clk 0:00:14]}  Kf4 {[%clk 0:00:41]} 45. Bd1 {[%clk 0:00:04]}  Kxe4 {[%clk 0:00:36]} 46. Bf3+ {[%clk 0:00:05]}  Kf4 {[%clk 0:00:36]} 47. Bd1 {[%clk 0:00:05]}  Rb1 {[%clk 0:00:32]} 48. Re1 {[%clk 0:00:00]}  Rbxd1 {[%clk 0:00:28]} 0-1

[Event "December 12 Late 2023"]
[Site "https://www.chess.com"]
[Date "2023.12.12"]
[Round "3"]
[White "Mazurkiewicz, Michal"]
[Black "Gubajdullin, Alexei"]
[Result "0-1"]
[Board "72"]
[TimeControl "180+1"]
[WhiteFideId "1124943"]
[BlackFideId "4141202"]
[WhiteElo "2461"]
[BlackElo "2621"]
[WhiteTeam "POL"]
[BlackTeam "RUS"]
[WhiteClock "0:00:02"]
[BlackClock "0:01:38"]

1. e4 {[%clk 0:03:00]}  g6 {[%clk 0:02:59]} 2. d4 {[%clk 0:02:59]}  Bg7 {[%clk 0:02:59]} 3. Nc3 {[%clk 0:03:00]}  d6 {[%clk 0:02:59]} 4. f4 {[%clk 0:03:00]}  a6 {[%clk 0:02:59]} 5. Nf3 {[%clk 0:02:59]}  Nd7 {[%clk 0:02:58]} 6. a4 {[%clk 0:02:59]}  e6 {[%clk 0:02:53]} 7. Be2 {[%clk 0:02:58]}  Ne7 {[%clk 0:02:53]} 8. Be3 {[%clk 0:02:57]}  b6 {[%clk 0:02:53]} 9. O-O {[%clk 0:02:56]}  Bb7 {[%clk 0:02:53]} 10. g4 {[%clk 0:02:38]}  c5 {[%clk 0:02:48]} 11. f5 {[%clk 0:01:44]}  cxd4 {[%clk 0:02:45]} 12. Bxd4 {[%clk 0:01:36]}  e5 {[%clk 0:02:41]} 13. Be3 {[%clk 0:01:31]}  gxf5 {[%clk 0:02:40]} 14. gxf5 {[%clk 0:01:29]}  Nf6 {[%clk 0:02:34]} 15. Qd3 {[%clk 0:01:15]}  d5 {[%clk 0:02:30]} 16. exd5 {[%clk 0:00:49]}  Nfxd5 {[%clk 0:02:28]} 17. Nxd5 {[%clk 0:00:39]}  Nxd5 {[%clk 0:02:25]} 18. Bg5 {[%clk 0:00:39]}  Bf6 {[%clk 0:02:20]} 19. Bxf6 {[%clk 0:00:28]}  Qxf6 {[%clk 0:02:20]} 20. Qe4 {[%clk 0:00:18]}  Qg7+ {[%clk 0:02:11]} 21. Kf2 {[%clk 0:00:17]}  O-O-O {[%clk 0:02:01]} 22. Qxe5 {[%clk 0:00:13]}  Qh6 {[%clk 0:01:56]} 23. Rad1 {[%clk 0:00:13]}  Rhe8 {[%clk 0:01:55]} 24. Qg3 {[%clk 0:00:13]}  Qe3+ {[%clk 0:01:52]} 25. Kg2 {[%clk 0:00:11]}  Nf4+ {[%clk 0:01:51]} 26. Kh1 {[%clk 0:00:10]}  Nxe2 {[%clk 0:01:49]} 27. Rxd8+ {[%clk 0:00:07]}  Rxd8 {[%clk 0:01:49]} 28. Qg2 {[%clk 0:00:01]}  Nd4 {[%clk 0:01:41]} 29. Nxd4 {[%clk 0:00:01]}  Bxg2+ {[%clk 0:01:40]} 30. Kxg2 {[%clk 0:00:02]}  Rxd4 {[%clk 0:01:40]} 31. Rf3 {[%clk 0:00:02]}  Qg5+ {[%clk 0:01:38]} 32. Kf2 {[%clk 0:00:02]}  Rd2+ {[%clk 0:01:38]} 33. Ke1 {[%clk 0:00:02]}  Rxc2 {[%clk 0:01:37]} 34. Rc3+ {[%clk 0:00:03]}  Rxc3 {[%clk 0:01:38]} 35. bxc3 {[%clk 0:00:02]}  Qxf5 {[%clk 0:01:38]} 0-1

[Event "December 12 Late 2023"]
[Site "https://www.chess.com"]
[Date "2023.12.12"]
[Round "3"]
[White "Goncalves, Davi Sulzbacher"]
[Black "Mirzoev, Azer"]
[Result "0-1"]
[Board "77"]
[TimeControl "180+1"]
[WhiteFideId "2154510"]
[BlackFideId "13400304"]
[WhiteElo "2453"]
[BlackElo "2611"]
[WhiteTeam "BRA"]
[BlackTeam "AZE"]
[WhiteClock "0:00:16"]
[BlackClock "0:01:00"]

1. Nf3 {[%clk 0:02:54]}  c5 {[%clk 0:02:59]} 2. c4 {[%clk 0:02:54]}  g6 {[%clk 0:02:58]} 3. Nc3 {[%clk 0:02:54]}  Bg7 {[%clk 0:02:58]} 4. d4 {[%clk 0:02:55]}  cxd4 {[%clk 0:02:59]} 5. Nxd4 {[%clk 0:02:56]}  Nc6 {[%clk 0:02:59]} 6. Nc2 {[%clk 0:02:56]}  f5 {[%clk 0:02:58]} 7. e4 {[%clk 0:02:56]}  fxe4 {[%clk 0:02:57]} 8. Nxe4 {[%clk 0:02:57]}  Nf6 {[%clk 0:02:57]} 9. Bd3 {[%clk 0:02:56]}  O-O {[%clk 0:02:56]} 10. O-O {[%clk 0:02:56]}  d6 {[%clk 0:02:56]} 11. Bg5 {[%clk 0:02:55]}  Nxe4 {[%clk 0:02:55]} 12. Bxe4 {[%clk 0:02:54]}  Bxb2 {[%clk 0:02:55]} 13. Rb1 {[%clk 0:02:19]}  Bg7 {[%clk 0:02:53]} 14. f4 {[%clk 0:02:05]}  Kh8 {[%clk 0:02:45]} 15. Qd3 {[%clk 0:02:03]}  Qc7 {[%clk 0:02:10]} 16. Ne3 {[%clk 0:01:42]}  e6 {[%clk 0:02:09]} 17. Ng4 {[%clk 0:01:37]}  e5 {[%clk 0:01:52]} 18. f5 {[%clk 0:01:18]}  Bxf5 {[%clk 0:01:48]} 19. Bxf5 {[%clk 0:01:19]}  gxf5 {[%clk 0:01:48]} 20. Rxf5 {[%clk 0:01:20]}  Rxf5 {[%clk 0:01:48]} 21. Qxf5 {[%clk 0:01:21]}  Rf8 {[%clk 0:01:48]} 22. Qe4 {[%clk 0:01:19]}  Qd7 {[%clk 0:01:27]} 23. Ne3 {[%clk 0:01:01]}  b6 {[%clk 0:01:22]} 24. h4 {[%clk 0:00:58]}  Nd4 {[%clk 0:01:22]} 25. h5 {[%clk 0:00:56]}  Qe6 {[%clk 0:01:15]} 26. Rf1 {[%clk 0:00:44]}  Rxf1+ {[%clk 0:01:11]} 27. Kxf1 {[%clk 0:00:45]}  h6 {[%clk 0:01:07]} 28. Bh4 {[%clk 0:00:34]}  Qf7+ {[%clk 0:01:07]} 29. Kg1 {[%clk 0:00:30]}  Qxh5 {[%clk 0:01:08]} 30. Be7 {[%clk 0:00:25]}  Qf7 {[%clk 0:01:00]} 31. Bxd6 {[%clk 0:00:16]}  Ne2+ {[%clk 0:01:00]} 0-1

[Event "December 12 Late 2023"]
[Site "https://www.chess.com"]
[Date "2023.12.12"]
[Round "3"]
[White "Lopusiewicz, Piotr"]
[Black "Olenik Campa, Rudi"]
[Result "0-1"]
[Board "79"]
[TimeControl "180+1"]
[WhiteFideId "1116029"]
[BlackFideId "14633264"]
[WhiteElo "2445"]
[BlackElo "2599"]
[WhiteTeam "POL"]
[BlackTeam "SLO"]
[WhiteClock "0:00:45"]
[BlackClock "0:02:33"]

1. d4 {[%clk 0:03:00]}  Nf6 {[%clk 0:02:58]} 2. c4 {[%clk 0:03:01]}  g6 {[%clk 0:02:58]} 3. Nc3 {[%clk 0:03:00]}  Bg7 {[%clk 0:02:59]} 4. e4 {[%clk 0:03:00]}  d6 {[%clk 0:02:59]} 5. Nf3 {[%clk 0:03:00]}  O-O {[%clk 0:02:59]} 6. Be2 {[%clk 0:03:01]}  e5 {[%clk 0:02:59]} 7. O-O {[%clk 0:03:00]}  Bg4 {[%clk 0:03:00]} 8. d5 {[%clk 0:02:58]}  a5 {[%clk 0:02:59]} 9. Bg5 {[%clk 0:02:54]}  Na6 {[%clk 0:02:58]} 10. Nd2 {[%clk 0:02:54]}  Bd7 {[%clk 0:02:57]} 11. Kh1 {[%clk 0:02:43]}  h6 {[%clk 0:02:57]} 12. Be3 {[%clk 0:02:43]}  h5 {[%clk 0:02:55]} 13. h3 {[%clk 0:02:33]}  Nh7 {[%clk 0:02:54]} 14. g4 {[%clk 0:02:24]}  Qh4 {[%clk 0:02:50]} 15. Kg2 {[%clk 0:02:23]}  f5 {[%clk 0:02:43]} 16. Nf3 {[%clk 0:01:47]}  Qe7 {[%clk 0:02:42]} 17. exf5 {[%clk 0:01:46]}  gxf5 {[%clk 0:02:42]} 18. gxf5 {[%clk 0:01:39]}  Bxf5 {[%clk 0:02:42]} 19. Kh2 {[%clk 0:01:33]}  e4 {[%clk 0:02:42]} 20. Nd4 {[%clk 0:01:31]}  Be5+ {[%clk 0:02:42]} 21. Kh1 {[%clk 0:01:29]}  Qh4 {[%clk 0:02:39]} 22. Rg1+ {[%clk 0:01:11]}  Kh8 {[%clk 0:02:39]} 23. Rg2 {[%clk 0:01:11]}  Qxh3+ {[%clk 0:02:38]} 24. Kg1 {[%clk 0:01:12]}  Rg8 {[%clk 0:02:34]} 25. Bg4 {[%clk 0:00:45]}  Rxg4 {[%clk 0:02:33]} 0-1

[Event "December 12 Late 2023"]
[Site "https://www.chess.com"]
[Date "2023.12.12"]
[Round "3"]
[White "Grinev, Valeriy"]
[Black "Bold, Andre"]
[Result "0-1"]
[Board "80"]
[TimeControl "180+1"]
[WhiteFideId "14117517"]
[BlackFideId "16208471"]
[WhiteElo "2595"]
[BlackElo "2434"]
[WhiteTeam "UKR"]
[BlackTeam "GER"]
[WhiteClock "0:00:58"]
[BlackClock "0:01:16"]

1. d4 {[%clk 0:02:57]}  d5 {[%clk 0:02:59]} 2. c4 {[%clk 0:02:56]}  c6 {[%clk 0:03:00]} 3. cxd5 {[%clk 0:02:56]}  cxd5 {[%clk 0:03:00]} 4. Bf4 {[%clk 0:02:57]}  Nf6 {[%clk 0:03:01]} 5. e3 {[%clk 0:02:57]}  Nc6 {[%clk 0:03:01]} 6. Nc3 {[%clk 0:02:57]}  Bf5 {[%clk 0:03:01]} 7. Qb3 {[%clk 0:02:42]}  Na5 {[%clk 0:03:00]} 8. Qa4+ {[%clk 0:02:42]}  Bd7 {[%clk 0:03:01]} 9. Qc2 {[%clk 0:02:42]}  Nc4 {[%clk 0:03:01]} 10. Nxd5 {[%clk 0:02:32]}  Nxd5 {[%clk 0:02:55]} 11. Bxc4 {[%clk 0:02:32]}  Nxf4 {[%clk 0:02:34]} 12. exf4 {[%clk 0:02:31]}  Rc8 {[%clk 0:02:22]} 13. Qb3 {[%clk 0:02:27]}  Qa5+ {[%clk 0:02:11]} 14. Ke2 {[%clk 0:01:57]}  Rxc4 {[%clk 0:02:10]} 15. Nf3 {[%clk 0:01:57]}  Qb4 {[%clk 0:01:57]} 16. Kd3 {[%clk 0:01:51]}  Bf5+ {[%clk 0:01:50]} 17. Ke3 {[%clk 0:01:52]}  Qxb3+ {[%clk 0:01:46]} 18. axb3 {[%clk 0:01:51]}  Rb4 {[%clk 0:01:46]} 19. Nd2 {[%clk 0:01:50]}  a6 {[%clk 0:01:44]} 20. Rhc1 {[%clk 0:01:50]}  g6 {[%clk 0:01:36]} 21. Rc7 {[%clk 0:01:46]}  Bg7 {[%clk 0:01:32]} 22. Rc4 {[%clk 0:01:30]}  Rb6 {[%clk 0:01:25]} 23. Rac1 {[%clk 0:01:26]}  O-O {[%clk 0:01:24]} 24. f3 {[%clk 0:01:09]}  Be6 {[%clk 0:01:21]} 25. Ra4 {[%clk 0:00:58]}  Bxb3 {[%clk 0:01:16]} 0-1